Cogmind - Beta 14 @@@ ROGUE MODE // 2024.11.10 @ 13:50:20 Player: Fangrelle Result: Destroyed by G-34 Mercenary with Small Laser Performance ------------- Evolutions (0) 0 Regions Visited (4) 800 Robots Destroyed (42) 210 Value Destroyed (1162) 1162 Prototype IDs (25) 500 Alien Tech Used (0) 0 Bonus (300) 300 TOTAL SCORE: 2972 Bonus ------- Aligned with FarCom 300 Cogmind --------- Core Integrity 0/250 Matter 77/300 Energy 265/265 System Corruption 3% Temperature Warm (191) Movement Walking (820) Ox10 Location -9/Mines Parts ------- > --- POWER (1) -------- Improved Ion Engine > --- PROPULSION (2) --- Aluminum Leg Aluminum Leg > --- UTILITY (2) ------ Humpback > --- WEAPON (2) ------- EM Pulse Gun Improved Light Cannon > --- INVENTORY (35) --- Light Nuclear Core Reinforced Deuterium Engine Fission Core Light Fission Core Wheel Large Storage Unit Lightpack 2.0 Large Battery (200) High-capacity Matter Pod (200) High-capacity Matter Pod (200) High-capacity Matter Pod (200) High-capacity Matter Pod (200) High-capacity Matter Pod (200) High-capacity Matter Pod (5) Improved Terrain Scanner Terrain Scan Processor Seismic Detector Light Armor Plating Light Armor Plating Hacking Suite EM Pulse Gun Datajack Mining Laser Mining Claw Mining Claw Peak State ------------ > --- POWER ------------ Improved Ion Engine > --- PROPULSION ------- Light Treads Wheel > --- UTILITY ---------- Humpback > --- WEAPON ----------- Improved Light Cannon Improved Light Cannon > --- INVENTORY -------- Light Nuclear Core Reinforced Deuterium Engine Fission Core Light Fission Core Large Storage Unit Lightpack 2.0 Large Battery High-capacity Matter Pod High-capacity Matter Pod High-capacity Matter Pod High-capacity Matter Pod High-capacity Matter Pod High-capacity Matter Pod Improved Terrain Scanner Terrain Scan Processor Seismic Detector Light Armor Plating Light Armor Plating Hacking Suite EM Pulse Gun EM Pulse Gun Datajack Mining Laser Mining Claw Mining Claw [Rating: 17] Favorites ----------- Power Improved Ion Engine Engine Improved Ion Engine Propulsion Light Treads Treads Light Treads Leg Aluminum Leg Wheel Wheel Utility Humpback Device Seismic Detector Storage Humpback Protection Light Armor Plating Weapon Improved Light Cannon Energy Gun EM Pulse Gun Ballistic Cannon Improved Light Cannon Special Weapon Mining Laser Slashing Weapon Mining Claw Special Melee Weapon Datajack Build | -11 -10 -10 -10 -9 ------- Run | Yrd Mat Min Exi Min Slots Evolved . | . . . . . Power . | . . . . . Propulsion . | . . . . . Utility . | . . . . . Weapon . | . . . . . Parts Attached 41 | 7 15 10 1 8 Power 3 | 1 1 1 . . Engine 3 | 1 1 1 . . Core . | . . . . . Reactor . | . . . . . Propulsion 11 | 2 4 3 . 2 Treads 5 | . 3 2 . . Leg 2 | . . . . 2 Wheel 4 | 2 1 1 . . Hover . | . . . . . Flight . | . . . . . Utility 9 | 2 3 3 1 . Device 3 | 1 1 1 . . Storage 3 | 1 1 . 1 . Processor . | . . . . . Hackware . | . . . . . Protection 3 | . 1 2 . . Artifact . | . . . . . Weapon 18 | 2 7 3 . 6 Energy Gun 6 | 2 3 . . 1 Energy Cannon . | . . . . . Ballistic Gun . | . . . . . Ballistic Cannon 9 | . 2 3 . 4 Launcher . | . . . . . Special Weapon 1 | . 1 . . . Impact Weapon . | . . . . . Slashing Weapon 1 | . . . . 1 Piercing Weapon . | . . . . . Special Melee Weapon 1 | . 1 . . . Unidentified Prototypes . | . . . . . Parts Lost 4 | . . 1 . 3 Power . | . . . . . Propulsion 3 | . . 1 . 2 Utility . | . . . . . Weapon 1 | . . . . 1 Highest Loss Streak 1 | . . 1 . 1 To Critical Strikes . | . . . . . Average Slot Usage (%) 76 | . 100 100 57 75 Engine 14 | . 14 14 14 14 Treads 15 | . 26 25 14 3 Leg 1 | . . . . 5 Wheel 8 | . 1 2 14 9 Device 2 | . 9 . . . Storage 14 | . 14 14 14 14 Protection 2 | . 4 13 . . Energy Gun 4 | . 11 12 . 2 Ballistic Cannon 10 | . 14 15 . 23 Peak Build Rating 17 | 9 10 12 13 17 Average Rating 11 | 5 9 10 10 15 On Entrance 8 | . 9 9 12 13 Naked Turns . | . . . . . Heaviest Build 215 | 13 34 38 207 215 Greatest Support 40 | 20 40 40 10 20 Greatest Overweight (x) 71 | 1 3 1 20 71 Average Overweight (x) 8 | . . . 16 20 Largest Inventory Capacity 35 | 8 15 15 35 35 Average Capacity 26 | 7 11 15 33 35 Most Carried 29 | 6 15 15 29 28 Average Carried 19 | 3 9 14 21 26 Final Capacity 35 | 8 15 15 35 35 Final Carried 29 | 6 15 14 29 27 Class Distribution -------------------- 63% | Hauler-Mutant 32% | Mutant 4% | Scavenger-Mutant Dominant Class ---------------- Mutant | -10/Materials Mutant | -10/Mines Hauler-Mutant | -10/Exiles Hauler-Mutant | -9/Mines Resources | -11 -10 -10 -10 -9 ----------- Run | Yrd Mat Min Exi Min Matter Collected 2364 | 260 428 409 1098 169 Remotely . | . . . . . Salvage Created 1310 | 146 514 220 . 430 Parts 79 | 10 28 10 . 31 Haulers Intercepted 2 | . 2 . . . Recyclers Shooed 2 | 1 . 1 . . Parts Field Recycled . | . . . . . Retrieved Matter . | . . . . . Parts Self-Destructed . | . . . . . Prevented . | . . . . . Kills | -11 -10 -10 -10 -9 ------- Run | Yrd Mat Min Exi Min Combat Hostiles Destroyed 35 | . 11 11 . 13 Guns 8 | . 1 4 . 3 Cannons 25 | . 10 7 . 8 AOE 2 | . . . . 2 Classes Destroyed 8 | 3 4 1 . . Worker 3 | 2 . . . 1 Tunneler 4 | 1 . . . 3 Hauler 2 | . 2 . . . Recycler 1 | 1 . . . . Operator 1 | . 1 . . . Watcher 3 | . 3 . . . Grunt 28 | . 11 4 . 13 Assembled 7 | . . 7 . . Best Kill Streak 5 | 3 5 3 . 4 Combat Bots Only 5 | . 5 3 . 3 Max Kills in Single Turn 3 | 1 1 1 . 3 Gunslinging . | . . . . . Exploded 2 | . . . . 2 Melee . | . . . . . Uniques/NPCs Destroyed . | . . . . . Combat | -11 -10 -10 -10 -9 -------- Run | Yrd Mat Min Exi Min Hostile Shots Fired 161 | . 27 45 . 89 Missed 46 | . 9 11 . 26 Damage Taken 1580 | 7 276 611 . 686 Core 260 | . 59 100 . 101 Absorbed by Shields . | . . . . . Core Remaining (%) 100 | 100 . . . . Volleys Fired 133 | 6 54 33 . 40 Largest 2 | 2 2 2 . 2 Hottest 100 | 80 100 80 . 79 Shots Fired 255 | 12 98 64 . 81 Gun 54 | 12 8 22 . 12 Cannon 191 | . 80 42 . 69 Launcher . | . . . . . Special 10 | . 10 . . . Kinetic 191 | . 80 42 . 69 Thermal 10 | . 10 . . . Explosive . | . . . . . Electromagnetic 54 | 12 8 22 . 12 Robot Hit Streak 11 | 7 11 10 . 10 Robot Miss Streak 11 | 1 11 7 . 3 Penetration Max . | . . . . . Secondary Targets . | . . . . . Shots Hit Robots 137 | 10 49 37 . 41 Core Hits 67 | 5 21 20 . 21 Critical Kills . | . . . . . Critical Parts Destroyed . | . . . . . Critical Strikes 4 | . 2 . . 2 Blast 3 | . 1 . . 2 Corrupt 1 | . 1 . . . Melee Attacks 15 | . 3 . . 12 Impact . | . . . . . Slashing 12 | . . . . 12 Piercing . | . . . . . Sneak Attacks . | . . . . . Combat Hostiles . | . . . . . Follow-up Attacks . | . . . . . Damage Inflicted 2933 | 265 984 637 . 1047 Guns 601 | 133 85 226 . 157 Cannons 2051 | . 877 411 . 763 Explosions 281 | 132 22 . . 127 Melee . | . . . . . Ramming . | . . . . . Kinetic 2051 | . 877 411 . 763 Thermal 281 | 132 22 . . 127 Explosive . | . . . . . Electromagnetic 601 | 133 85 226 . 157 Impact . | . . . . . Slashing . | . . . . . Piercing . | . . . . . Highest Corruption 3 | . 3 3 3 3 Average Corruption 2 | . 1 3 3 3 Corruption Purged . | . . . . . Corruption Blocked . | . . . . . Effects 69 | . 4 11 34 20 Message Errors 13 | . 1 2 7 3 Matter Fused 17 | . 2 5 5 5 Heat Flow Errors 12 | . 1 . 7 4 Energy Discharges 11 | . . 1 7 3 Parts Rejected 1 | . . 1 . . Parts Fused 2 | . . . 1 1 Data Loss (minor) 6 | . . . 3 3 Data Loss (major) 4 | . . 1 3 . Misfires 1 | . . . . 1 Alerts 2 | . . 1 1 . Overload Shots . | . . . . . Overflow Damage 4 | . 1 . . 3 Projectiles 4 | . 1 . . 3 Explosions . | . . . . . Melee . | . . . . . Knockbacks 22 | . 14 2 . 6 Impact . | . . . . . Kinetic 21 | . 14 2 . 5 Secondary 1 | . . . . 1 Self-Inflicted Damage 7 | 7 . . . . Shots 1 | 1 . . . . Rammed . | . . . . . Targets Rammed . | . . . . . Kicked . | . . . . . Crushed . | . . . . . Highest Temperature 276 | 54 254 224 254 276 Average Temperature 79 | 27 64 86 102 86 Received Heat Transfer 619 | . 132 109 . 378 Effects 2 | . . 2 . . Interference 2 | . . 2 . . Siege Activations . | . . . . . Robots Corrupted . | . . . . . Combat Hostiles . | . . . . . Parts Fried 2 | . 1 . . 1 Impact Corruptions . | . . . . . Robots Melted . | . . . . . Combat Hostiles . | . . . . . Parts Melted . | . . . . . Heat Transferred 300 | 100 50 . . 150 Parts Sabotaged . | . . . . . Parts Stolen . | . . . . . Parts Stripped . | . . . . . Power Chain Reactions 4 | 2 1 . . 1 Alert | -11 -10 -10 -10 -9 ------- Run | Yrd Mat Min Exi Min Peak Influence 302 | 20 302 190 . 190 Initial 90 | . 13 90 . . Average 84 | 3 129 99 . 47 Maximum Alert Level 1 | . 1 . . . Low Security (%) 93 | 100 80 100 . 100 Level 1 6 | . 19 . . . Level 2 . | . . . . . Level 3 . | . . . . . Level 4 . | . . . . . Level 5 . | . . . . . High Security . | . . . . . Max Security . | . . . . . Squads Dispatched 3 | . 3 . . . Investigation 2 | . 2 . . . Extermination . | . . . . . Reinforcement 1 | . 1 . . . Assault . | . . . . . Garrison . | . . . . . Intercept . | . . . . . Searches Triggered . | . . . . . Construction Impeded . | . . . . . Haulers Reinforced . | . . . . . Active Scanning Responses . | . . . . . Cargo Convoy Interrupts . | . . . . . Stealth | -11 -10 -10 -10 -9 --------- Run | Yrd Mat Min Exi Min Distress Signals 1 | . 1 . . . Communications Jammed . | . . . . . Distress Signals . | . . . . . Times Spotted 50 | . 18 10 . 22 Peak Tracking Total 4 | . 3 3 . 4 Tactical Retreats 13 | . 5 2 . 6 Traps | -11 -10 -10 -10 -9 ------- Run | Yrd Mat Min Exi Min Traps Triggered 3 | . 3 . . . Indirectly . | . . . . . Trap Hack Attempts . | . . . . . Triggered . | . . . . . Disarmed . | . . . . . Reprogrammed . | . . . . . Reused . | . . . . . Traps Extracted . | . . . . . Installed . | . . . . . Triggered . | . . . . . Machines | -11 -10 -10 -10 -9 ---------- Run | Yrd Mat Min Exi Min Machines Disabled 4 | . 4 . . . Max in Single Turn 1 | . 1 . . . Machines Repaired . | . . . . . Machines Dismantled . | . . . . . Machines Sabotaged . | . . . . . Overloaded Fab Kills . | . . . . . Hacking | -11 -10 -10 -10 -9 --------- Run | Yrd Mat Min Exi Min Machines Accessed 8 | . 5 . 3 . Terminals 3 | . 3 . . . Fabricators . | . . . . . Repair Stations . | . . . . . Recycling Units 2 | . 2 . . . Scanalyzers . | . . . . . Garrison Access . | . . . . . Total Hacks 23 | . 14 . 9 . Successful 21 | . 12 . 9 . Failed 2 | . 2 . . . Catastrophic . | . . . . . Database Lockouts . | . . . . . Manual 12 | . 11 . 1 . Terminals 9 | . 9 . . . Fabricators . | . . . . . Repair Stations . | . . . . . Recycling Units 5 | . 5 . . . Scanalyzers . | . . . . . Garrison Access . | . . . . . Terminal Hacks 12 | . 3 . 9 . Record 8 | . . . 8 . Robot Analysis 2 | . 2 . . . Prototype ID Bank 1 | . 1 . . . Derelict Proto ID Bank 1 | . . . 1 . Fabricator Hacks . | . . . . . Repair Station Hacks . | . . . . . Recycling Unit Hacks 3 | . 3 . . . Report Inventory 2 | . 2 . . . Retrieve Components 1 | . 1 . . . Scanalyzer . | . . . . . Garrison Access Hacks . | . . . . . Unauthorized Hacks 6 | . 6 . . . Terminals 4 | . 4 . . . Botnet 3 | . 3 . . . Operators 1 | . 1 . . . Fabricators . | . . . . . Repair Stations . | . . . . . Recycling Units 2 | . 2 . . . Tunnel 2 | . 2 . . . Scanalyzers . | . . . . . Garrison Access . | . . . . . Data Cores Recovered . | . . . . . Used . | . . . . . Hacking Detections 4 | . 4 . . . Full Trace Events . | . . . . . Feedback Events . | . . . . . Feedback Blocked . | . . . . . Robot Schematics Acquired . | . . . . . Robots Built . | . . . . . Authchips . | . . . . . Time . | . . . . . Total Robot Build Rating . | . . . . . Part Schematics Acquired . | . . . . . Parts Built . | . . . . . Authchips . | . . . . . Time . | . . . . . Total Part Build Rating . | . . . . . Parts Repaired . | . . . . . Time . | . . . . . Parts Recycled . | . . . . . Recycled Matter . | . . . . . Retrieved Matter . | . . . . . Retrieved Components 9 | . 9 . . . Parts Scanalyzed . | . . . . . Part Schematics Acquired . | . . . . . Parts Damaged . | . . . . . Bothacking | -11 -10 -10 -10 -9 ------------ Run | Yrd Mat Min Exi Min Used RIF Installer . | . . . . . Robots Hacked 1 | . 1 . . . Non-combat . | . . . . . Combat 1 | . 1 . . . Robot Hacks Applied 1 | . 1 . . . parse_system 1 | . 1 . . . Relay Couplers Released . | . . . . . Fabnet Peak Effective % . | . . . . . Robots Rewired . | . . . . . Allies Hacked . | . . . . . Hacks Repelled . | . . . . . Allies | -11 -10 -10 -10 -9 -------- Run | Yrd Mat Min Exi Min Total Allies . | . . . . . Largest Group . | . . . . . Highest-Rated Group . | . . . . . Highest-Rated Ally . | . . . . . Total Orders . | . . . . . Ally Attacks . | . . . . . Total Damage . | . . . . . Kills . | . . . . . Allies Corrupted . | . . . . . Allies Melted . | . . . . . Intel | -11 -10 -10 -10 -9 ------- Run | Yrd Mat Min Exi Min Robot Analysis Total 2 | . 2 . . . Derelict Logs Recovered . | . . . . . Drone Launches . | . . . . . Drone Recoveries . | . . . . . Exploration | -11 -10 -10 -10 -9 ------------- Run | Yrd Mat Min Exi Min Turns Passed 5315 | 110 1100 610 2143 1352 Spaces Moved 1782 | 99 575 261 658 189 Core 20 | 17 . . . 3 Treads 733 | . 472 261 . . Legs 26 | . . . . 26 Wheels 1003 | 82 103 . 658 160 Hover . | . . . . . Flight . | . . . . . Fastest Speed 50 | 50 80 160 80 395 Average Speed 252 | 76 153 167 322 524 Slowest Speed 3600 | 100 160 240 380 3600 Overloaded Moves . | . . . . . Propulsion Burnouts . | . . . . . Robots Hopped . | . . . . . Cave-ins Triggered . | . . . . . Exploration Rate (%) 42 | 5 72 36 88 12 Regions Visited 4 Branch Regions 3 Pre-discovered Areas 3 | . 2 . 1 . Known Exits Taken . | . . . . . Unknown Exits Taken 4 | 1 1 1 1 . Scrap Searched 1 | . . 1 . . Spaces Dug 14 | . 5 . . 9 Terrain Destroyed 42 | 4 18 1 . 19 Melee 9 | . . . . 9 Projectile 24 | . 15 1 . 8 AOE 9 | 4 3 . . 2 Terrain Rammed . | . . . . . Walls Destroyed . | . . . . . Machines Disabled . | . . . . . Actions | -11 -10 -10 -10 -9 --------- Run | Yrd Mat Min Exi Min Total 2284 | 117 671 369 684 443 Wait 259 | . 5 61 . 193 Move 1778 | 98 574 260 657 189 Hop . | . . . . . Pick Up 42 | 6 12 1 22 1 Fast Attach 13 | 7 1 2 1 2 Attach 4 | . . 1 . 3 Detach 2 | . 1 . 1 . Swap 24 | . 14 7 . 3 Drop 14 | . 7 4 3 . Fire 133 | 6 54 33 . 40 Melee 15 | . 3 . . 12 Ram . | . . . . . Kick . | . . . . . Crush . | . . . . . Escape Stasis . | . . . . . Rewire . | . . . . . Trap . | . . . . . Miscellaneous . | . . . . . Route ------- -11/Scrapyard -10/Materials (discovered 4 exits: [*Mat x2] / [*Min] / [*Sub]) -10/Mines (discovered 2 exits: [*Mat] / *Exi) -10/Exiles (discovered 2 exits: [*Min x2]) -9/Mines History --------- Turn | Location | Event 26 | -11/Scrapyard | Discovered new exit (range 15) 111 | -11/Scrapyard | Entered Materials 327 | -10/Materials | Build established: Mutant 633 | -10/Materials | Discovered new exit (range 13) 823 | -10/Materials | Discovered new exit (range 12) 1069 | -10/Materials | Discovered new exit (range 11) 1139 | -10/Materials | Discovered new exit (range 11) 1211 | -10/Materials | Entered Mines 1251 | -10/Mines | Deemed a non-threat by the Exiles lab entrance 1251 | -10/Mines | Discovered new exit (range 5) 1317 | -10/Mines | Found DCF Scrap (14 items) 1341 | -10/Mines | Discovered new exit (range 12) 1372 | -10/Mines | Joined a pair of Derelicts in attacking an 0b10 outpost 1460 | -10/Mines | Assembled infested the area 1465 | -10/Mines | Assisted by a Guerilla fighting off Assembled 1756 | -10/Mines | Core integrity fell below 50% 1821 | -10/Mines | Entered Exiles 1850 | -10/Exiles | Met 8R-AWN 1868 | -10/Exiles | Met EX-HEX 1909 | -10/Exiles | Met EX-DEC 2246 | -10/Exiles | Learned location of Zion (-6) 2263 | -10/Exiles | Build established: Hauler-Mutant 2307 | -10/Exiles | Met EX-BIN 2371 | -10/Exiles | Aligned with FarCom system 2375 | -10/Exiles | Given EX-Vault access code 2463 | -10/Exiles | Opened EX-Vault 2489 | -10/Exiles | Found Lightpack 2.0 2574 | -10/Exiles | Warned to stay clear of 0b10 Research branches 2829 | -10/Exiles | Visited The Gauntlet 3418 | -10/Exiles | Discovered new exit (range 12) 3922 | -10/Exiles | Discovered new exit (range 14) 3964 | -10/Exiles | Left Exiles lab with Lightpack 2.0 3964 | -10/Exiles | Entered Mines 4000 | -9/Mines | Met a Derelict bent on vengeance 4233 | -9/Mines | Excavation squad dispatched 4233 | -9/Mines | A large section of the Mines collapsed 4483 | -9/Mines | Excavation squad dispatched 4733 | -9/Mines | Excavation squad dispatched 4879 | -9/Mines | Core integrity fell below 20% 4983 | -9/Mines | Excavation squad dispatched 5233 | -9/Mines | Excavation squad dispatched 5316 | -9/Mines | Destroyed by G-34 Mercenary with Small Laser Last Messages --------------- 05169_ Acquired 1 matter. 05169_ K-01 Serf collects debris. 05233_ ALERT: Derelict activity in mines confirmed. Dispatching additional escorted excavation squad. 05238_ U-05 Engineer lays Concrete. 05256_ U-05 Engineer builds a Wall. 05258_ System corrupted: Energy discharge (-100). 05261_ U-05 Engineer builds a Wall. 05263_ U-05 Engineer lays Concrete. 05275_ Acquired Wheel. 05276_ Acquired 22 matter. 05296_ G-34 Mercenary knocked back. 05302_ G-34 Mercenary destroyed. 05305_ T-07 Excavator destroyed. 05306_ G-34 Mercenary misfires. 05310_ G-34 Mercenary IFF system glitched. 05311_ Heat Sink fried. 05311_ G-34 Mercenary destroyed. 05314_ U-05 Engineer lays Concrete. 05314_ G-34 Mercenary destroyed. 05314_ U-05 Engineer builds a Wall. Map ----- +----------------------------------------------------+ | ?????????????????????????????????????????????????? | | ?????????????????????????????????????????????????? | | ?????????????????????????????????????????????????? | | ?????????????????????????????????????????????????? | | ?????????????????????????????????????????????????? | | ?????????????????????????????????????????????????? | | ?????????????????????????????????????????????????? | | ?????????????????????????????????????????????????? | | ?????????????????????????????????????????????????? | | ?????????????????????????????????????????????????? | | ?????????????????????????????????????????????????? | | ?????????????????????????????????????????????????? | | ?????????????????????????????????????????????????? | | ?????????????????????????????????????????????????? | | ?????????????????????????????????????????????????? | | ?????????????????????????????????????????????????? | | ?????????????????????????????????????????????????? | | ?????????????????????????????????????????????????? | | ?????????????????????????????????????????????????? | | ?????????????????????###?????????????????????????? | | ?????????????????????# ?????????????????????????? | | ?????????????????????# #?????????????????????????? | | ?????????? #???????# #####?????????????????????? | | ??????? ; g ; #####u#*;%##????????????????????? | | ??????? u =% =%|!t*%###??????????????????? | | ???????????## ; = t=%t@t%;*###????????????????? | | ????????????### ###=*%[%== ####?????????????? | | ??????????????## #?##%==%%%= ##????????????? | | ???????########## ####!=!t=*=|! #????????????? | | ???????#"############ t%=%*!%%g #????????????? | | ????????# !## !=[!##!=t #????????????? | | ????????# ######!## =%* !#####! ##????????????? | | ????????# #????# ### ! !%###??# %##?????????????? | | ????????# #????# [ t =##????# #??????????????? | | ???????## #????# ;#?????# #??????????????? | | ???????# #????#### % ##?????# #????s?????????? | | ???????# = ##???# ## #??????# #??s???????????? | | ???????# ! ##??### ##??????# ?s????????????? | | ???????# #????# #???????# ??????????????? | | ???????# #????## ##???????#### ?????????????? | | ???????## ##?????####????????????#?????????????? | | ????????#####????????????????????????????????????? | | ?????????????????????????????????????????????????? | | | | | | | | | | | | | | | +----------------------------------------------------+ Best States ------------- Heat Dissipation 25 Energy Generation 12 Energy Capacity 265 Matter Stores 300 Matter Capacity 300 Sight Range 16 Terrain Scan Range 16 Terrain Scan Density 10 Armor Coverage 150 Evasion (%) 50 Recoil Reduction 2 Item Schematics ----------------- None Robot Schematics ------------------ None Fabricated ------------ Nothing Alien Tech Used ----------------- None Achievements -------------- None Challenges ------------ None Game ------ Seed SiegeBlastShield Manual? 0 Play Time 00:23:49 Cumulative 43.7 hours Start 2024.11.10 @ 13:25:17 End 2024.11.10 @ 13:50:20 Sessions 1 Manual Loads 0 Difficulty Rogue Special Mode None Game No. 81 Rogue 81 Adventurer 0 Explorer 0 Win Type - Total 0 Types 0/0/0/0/0/0/0/0/0 Lore% 35 Gallery% 30 Achievement% 32 Wizard Run 0 Options --------- Layout 0 ASCII 0 Keyboard 0 Movement Mouse Keybinds 0 Fullscreen 1 Font 24/Smallcaps Map View 183x50 Zoom Use 72% Tactical HUD 1 Map Filters NONE Filters NONE Steam 1 RUN: 592bdaa9-9c3e-4d35-b943-a2d1bcf2e2ac